[Event "*** Titled Tuesday Blitz"]
[Site "Chess.com"]
[Date "2021.03.09"]
[Round "10"]
[White "eduardoperalta"]
[Black "PavelChernomordik"]
[Result "0-1"]
[WhiteElo "2516"]
[BlackElo "2423"]
[TimeControl "180+1"]
[EndTime "12:00:52 PST"]
[Termination "PavelChernomordik won by resignation"]

1. d4 {[%clk 0:03:00.9]} 1... g6 {[%clk 0:02:59.5]} 2. c4 {[%clk 0:02:59.9]}
2... Bg7 {[%clk 0:02:59.2]} 3. Nc3 {[%clk 0:02:58.7]} 3... d6 {[%clk 0:02:58.9]}
4. e4 {[%clk 0:02:57.5]} 4... c6 {[%clk 0:02:58.7]} 5. f3 {[%clk 0:02:56.6]}
5... a6 {[%clk 0:02:58.4]} 6. Be3 {[%clk 0:02:56.6]} 6... b5 {[%clk 0:02:57.6]}
7. Qd2 {[%clk 0:02:54.1]} 7... Nd7 {[%clk 0:02:54.2]} 8. Rc1 {[%clk 0:02:49.9]}
8... Bb7 {[%clk 0:02:44.1]} 9. Nh3 {[%clk 0:02:47.8]} 9... Nb6 {[%clk
0:02:31.4]} 10. b3 {[%clk 0:02:47.2]} 10... bxc4 {[%clk 0:02:26.8]} 11. bxc4
{[%clk 0:02:47]} 11... a5 {[%clk 0:02:26.9]} 12. Be2 {[%clk 0:02:37.4]} 12...
Ba6 {[%clk 0:02:25.7]} 13. Nd1 {[%clk 0:02:36]} 13... Nf6 {[%clk 0:02:17.1]} 14.
O-O {[%clk 0:02:33.2]} 14... O-O {[%clk 0:02:16.4]} 15. Nb2 {[%clk 0:02:18.4]}
15... Qc7 {[%clk 0:02:09.7]} 16. Nf2 {[%clk 0:02:15.1]} 16... c5 {[%clk
0:01:59.8]} 17. d5 {[%clk 0:02:09.1]} 17... Nfd7 {[%clk 0:01:57.2]} 18. Bh6
{[%clk 0:02:03.6]} 18... a4 {[%clk 0:01:43.2]} 19. Bxg7 {[%clk 0:02:02.6]} 19...
Kxg7 {[%clk 0:01:42.2]} 20. f4 {[%clk 0:01:59.2]} 20... a3 {[%clk 0:01:38]} 21.
Nbd1 {[%clk 0:01:58.6]} 21... Na4 {[%clk 0:01:34.9]} 22. Bd3 {[%clk 0:01:49.3]}
22... Rab8 {[%clk 0:01:33.6]} 23. h4 {[%clk 0:01:45.4]} 23... Nb2 {[%clk
0:01:30.2]} 24. Ne3 {[%clk 0:01:44.1]} 24... Rb4 {[%clk 0:01:16]} 25. h5 {[%clk
0:01:39.5]} 25... Rfb8 {[%clk 0:01:13.8]} 26. Qc3+ {[%clk 0:01:32]} 26... f6
{[%clk 0:01:12.4]} 27. hxg6 {[%clk 0:01:27.8]} 27... hxg6 {[%clk 0:01:11.7]} 28.
Qxa3 {[%clk 0:01:21.6]} 28... Ra4 {[%clk 0:01:07.2]} 29. Qc3 {[%clk 0:01:19.1]}
29... Nxd3 {[%clk 0:01:06.4]} 30. Nxd3 {[%clk 0:01:17.6]} 30... Rxa2 {[%clk
0:01:06.1]} 31. e5 {[%clk 0:01:17.4]} 31... Qa5 {[%clk 0:01:01.9]} 32. exf6+
{[%clk 0:01:13.8]} 32... exf6 {[%clk 0:01:00.5]} 33. Qxa5 {[%clk 0:01:09.9]}
33... Rxa5 {[%clk 0:00:59.7]} 34. Ra1 {[%clk 0:01:10.2]} 34... Rxa1 {[%clk
0:00:57.6]} 35. Rxa1 {[%clk 0:01:11.1]} 35... Bc8 {[%clk 0:00:55.6]} 36. Ra3
{[%clk 0:01:05.8]} 36... Rb1+ {[%clk 0:00:53.2]} 37. Kf2 {[%clk 0:01:04.7]}
37... Kf7 {[%clk 0:00:54.1]} 38. Ke2 {[%clk 0:00:57.6]} 38... Ke7 {[%clk
0:00:45.8]} 39. g4 {[%clk 0:00:55.7]} 39... Kd8 {[%clk 0:00:45.1]} 40. Kd2
{[%clk 0:00:51.9]} 40... Kc7 {[%clk 0:00:44.6]} 41. Nd1 {[%clk 0:00:49.8]} 41...
Nb6 {[%clk 0:00:40.7]} 42. N3b2 {[%clk 0:00:46.2]} 42... Bxg4 {[%clk 0:00:31.9]}
43. Kc2 {[%clk 0:00:38.2]} 43... Bf5+ {[%clk 0:00:30.8]} 44. Kd2 {[%clk
0:00:38.4]} 44... Bg4 {[%clk 0:00:26.5]} 45. Kc2 {[%clk 0:00:16.7]} 45... Bf5+
{[%clk 0:00:25.6]} 46. Kc3 {[%clk 0:00:09.1]} 46... Rc1+ {[%clk 0:00:23.8]} 47.
Kd2 {[%clk 0:00:07.9]} 47... Rxc4 {[%clk 0:00:19.9]} 48. Ra7+ {[%clk 0:00:06.2]}
48... Kb8 {[%clk 0:00:19.5]} 49. Nxc4 {[%clk 0:00:04.2]} 49... Nxc4+ {[%clk
0:00:18.6]} 50. Kc3 {[%clk 0:00:04.6]} 50... Kxa7 {[%clk 0:00:18.2]} 51. Kxc4
{[%clk 0:00:05.2]} 51... g5 {[%clk 0:00:18.4]} 52. Ne3 {[%clk 0:00:03.7]} 52...
Bd7 {[%clk 0:00:17.8]} 53. f5 {[%clk 0:00:02.1]} 53... Kb6 {[%clk 0:00:17.3]}
54. Ng4 {[%clk 0:00:02.2]} 54... Bxf5 {[%clk 0:00:16.4]} 55. Nxf6 {[%clk
0:00:02.5]} 55... g4 {[%clk 0:00:15.6]} 56. Nh5 {[%clk 0:00:02.8]} 56... Ka5
{[%clk 0:00:15.2]} 57. Ng3 {[%clk 0:00:03]} 57... Bg6 {[%clk 0:00:14.2]} 58. Ne2
{[%clk 0:00:02.5]} 58... Ka4 {[%clk 0:00:13.6]} 59. Ng3 {[%clk 0:00:02.4]} 59...
Ka3 {[%clk 0:00:13.2]} 60. Kc3 {[%clk 0:00:02.8]} 60... Bf7 {[%clk 0:00:11.2]}
61. Nf5 {[%clk 0:00:01.7]} 61... Bxd5 {[%clk 0:00:10.5]} 62. Nxd6 {[%clk
0:00:01.6]} 62... g3 {[%clk 0:00:10.1]} 63. Nf5 {[%clk 0:00:01.8]} 63... g2
{[%clk 0:00:09.6]} 64. Ne3 {[%clk 0:00:01.9]} 64... g1=Q {[%clk 0:00:08.9]} 65.
Nxd5 {[%clk 0:00:02.8]} 65... Qd4+ {[%clk 0:00:08.3]} 66. Kc2 {[%clk 0:00:03.4]}
0-1

[Event "*** Titled Tuesday Blitz"]
[Site "Chess.com"]
[Date "2021.03.09"]
[Round "10"]
[White "azikom"]
[Black "Sam_ChessMood"]
[Result "1/2-1/2"]
[WhiteElo "2660"]
[BlackElo "2869"]
[TimeControl "180+1"]
[EndTime "12:00:53 PST"]
[Termination "Game drawn by repetition"]

1. d4 {[%clk 0:03:00]} 1... d5 {[%clk 0:02:58.3]} 2. Nf3 {[%clk 0:02:59.6]} 2...
Nf6 {[%clk 0:02:58.2]} 3. c4 {[%clk 0:02:59.6]} 3... c6 {[%clk 0:02:58.2]} 4. e3
{[%clk 0:02:58.4]} 4... Bf5 {[%clk 0:02:57.6]} 5. cxd5 {[%clk 0:02:53.5]} 5...
cxd5 {[%clk 0:02:57.1]} 6. Nc3 {[%clk 0:02:48.5]} 6... Nc6 {[%clk 0:02:53.5]} 7.
Qb3 {[%clk 0:02:45.2]} 7... Na5 {[%clk 0:02:49.7]} 8. Bb5+ {[%clk 0:02:42.3]}
8... Bd7 {[%clk 0:02:49.1]} 9. Qa4 {[%clk 0:02:41.8]} 9... Nc6 {[%clk
0:02:48.8]} 10. Ne5 {[%clk 0:02:39]} 10... a6 {[%clk 0:02:11.3]} 11. Bxc6 {[%clk
0:02:13.3]} 11... bxc6 {[%clk 0:02:10.9]} 12. Bd2 {[%clk 0:02:13.6]} 12... e6
{[%clk 0:02:05.3]} 13. Rc1 {[%clk 0:02:08.5]} 13... c5 {[%clk 0:02:02.5]} 14.
Nxd7 {[%clk 0:02:07.3]} 14... Qxd7 {[%clk 0:02:00.6]} 15. dxc5 {[%clk
0:02:06.8]} 15... Bxc5 {[%clk 0:01:59.3]} 16. Qxd7+ {[%clk 0:02:02.2]} 16...
Nxd7 {[%clk 0:02:00.2]} 17. Na4 {[%clk 0:02:01.8]} 17... Bd6 {[%clk 0:01:52]}
18. Ke2 {[%clk 0:01:56.6]} 18... Ke7 {[%clk 0:01:52.2]} 19. Rc2 {[%clk
0:01:45.8]} 19... Rhb8 {[%clk 0:01:45.1]} 20. Rhc1 {[%clk 0:01:44.4]} 20... Nb6
{[%clk 0:01:45.1]} 21. Nxb6 {[%clk 0:01:43.2]} 21... Rxb6 {[%clk 0:01:45.2]} 22.
Ba5 {[%clk 0:01:34]} 22... Rb7 {[%clk 0:01:22.9]} 23. Bc7 {[%clk 0:01:30.2]}
23... Kd7 {[%clk 0:00:57.6]} 24. Bxd6 {[%clk 0:01:29.2]} 24... Kxd6 {[%clk
0:00:58.5]} 25. Rc6+ {[%clk 0:01:28.1]} 25... Kd7 {[%clk 0:00:57.7]} 26. b3
{[%clk 0:01:22.5]} 26... a5 {[%clk 0:00:57.6]} 27. R6c3 {[%clk 0:01:00.3]} 27...
a4 {[%clk 0:00:57.1]} 28. R1c2 {[%clk 0:00:57.7]} 28... axb3 {[%clk 0:00:52.1]}
29. axb3 {[%clk 0:00:57.4]} 29... Rab8 {[%clk 0:00:48.5]} 30. Rb2 {[%clk
0:00:56.5]} 30... Kd6 {[%clk 0:00:48.8]} 31. f4 {[%clk 0:00:55]} 31... h6 {[%clk
0:00:48.9]} 32. h4 {[%clk 0:00:54.1]} 32... Rb4 {[%clk 0:00:44.3]} 33. g3 {[%clk
0:00:53.6]} 33... g5 {[%clk 0:00:42.6]} 34. hxg5 {[%clk 0:00:51.1]} 34... hxg5
{[%clk 0:00:43]} 35. Kf3 {[%clk 0:00:51.5]} 35... f5 {[%clk 0:00:39.5]} 36. fxg5
{[%clk 0:00:47.3]} 36... Rg8 {[%clk 0:00:34.1]} 37. Ra2 {[%clk 0:00:46.7]} 37...
Rxg5 {[%clk 0:00:31.5]} 38. Ra6+ {[%clk 0:00:43.9]} 38... Ke5 {[%clk 0:00:29.8]}
39. Ra4 {[%clk 0:00:39.9]} 39... Rbg4 {[%clk 0:00:24.2]} 40. Rxg4 {[%clk
0:00:38]} 40... Rxg4 {[%clk 0:00:25.1]} 41. Rd3 {[%clk 0:00:34.4]} 41... Rb4
{[%clk 0:00:24.3]} 42. Rc3 {[%clk 0:00:34.2]} 42... Kf6 {[%clk 0:00:23.6]} 43.
Ke2 {[%clk 0:00:32.7]} 43... Ke7 {[%clk 0:00:18]} 44. Kf2 {[%clk 0:00:32]} 44...
Kd6 {[%clk 0:00:18.3]} 45. Ke2 {[%clk 0:00:32.3]} 45... e5 {[%clk 0:00:18.4]}
46. Kf2 {[%clk 0:00:31.4]} 46... d4 {[%clk 0:00:17]} 47. exd4 {[%clk 0:00:31.3]}
47... exd4 {[%clk 0:00:17.5]} 48. Rf3 {[%clk 0:00:30.8]} 48... Ke5 {[%clk
0:00:16.6]} 49. Ke2 {[%clk 0:00:30.6]} 49... Rb8 {[%clk 0:00:15.5]} 50. Kd2
{[%clk 0:00:29.6]} 50... Ra8 {[%clk 0:00:15.7]} 51. b4 {[%clk 0:00:24.7]} 51...
Ra2+ {[%clk 0:00:12.5]} 52. Kc1 {[%clk 0:00:24.3]} 52... Ke4 {[%clk 0:00:11.3]}
53. Rb3 {[%clk 0:00:23.7]} 53... d3 {[%clk 0:00:11.6]} 54. b5 {[%clk 0:00:18.3]}
54... Ke3 {[%clk 0:00:11.6]} 55. b6 {[%clk 0:00:18.5]} 55... Ra1+ {[%clk
0:00:05.1]} 56. Kb2 {[%clk 0:00:18.2]} 56... Ra8 {[%clk 0:00:05.2]} 57. b7
{[%clk 0:00:18.1]} 57... Rb8 {[%clk 0:00:05.4]} 58. Rb6 {[%clk 0:00:17.2]} 58...
Kf3 {[%clk 0:00:04]} 59. Kc3 {[%clk 0:00:16]} 59... Kxg3 {[%clk 0:00:04.5]} 60.
Kxd3 {[%clk 0:00:16]} 60... Kf3 {[%clk 0:00:05]} 61. Rf6 {[%clk 0:00:16.3]}
61... f4 {[%clk 0:00:05.4]} 62. Rb6 {[%clk 0:00:16.3]} 62... Kf2 {[%clk
0:00:04.4]} 63. Rb2+ {[%clk 0:00:13.3]} 63... Kf3 {[%clk 0:00:04.2]} 64. Rb1
{[%clk 0:00:12.8]} 64... Kf2 {[%clk 0:00:03.7]} 65. Rb2+ {[%clk 0:00:12.7]}
65... Kf3 {[%clk 0:00:03.6]} 66. Rb1 {[%clk 0:00:12.8]} 66... Kf2 {[%clk
0:00:03.8]} 67. Rb2+ {[%clk 0:00:12.9]} 1/2-1/2

[Event "*** Titled Tuesday Blitz"]
[Site "Chess.com"]
[Date "2021.03.09"]
[Round "10"]
[White "pfalcon1949"]
[Black "HrvojeZagreb"]
[Result "0-1"]
[WhiteElo "2061"]
[BlackElo "2268"]
[TimeControl "180+1"]
[EndTime "12:00:53 PST"]
[Termination "HrvojeZagreb won by checkmate"]

1. c4 {[%clk 0:03:00.9]} 1... f5 {[%clk 0:02:59.6]} 2. Nc3 {[%clk 0:03:01.5]}
2... Nf6 {[%clk 0:03:00]} 3. g3 {[%clk 0:03:01.9]} 3... e5 {[%clk 0:03:00.1]} 4.
Bg2 {[%clk 0:03:02.6]} 4... d6 {[%clk 0:03:00.6]} 5. d3 {[%clk 0:03:03]} 5...
Be7 {[%clk 0:03:01.1]} 6. e4 {[%clk 0:03:02.1]} 6... Nc6 {[%clk 0:02:58.8]} 7.
Nge2 {[%clk 0:03:01.9]} 7... O-O {[%clk 0:02:58.7]} 8. O-O {[%clk 0:03:01.1]}
8... Qe8 {[%clk 0:02:59]} 9. exf5 {[%clk 0:02:56.4]} 9... Bxf5 {[%clk
0:02:58.2]} 10. d4 {[%clk 0:02:56.9]} 10... Bg4 {[%clk 0:02:53.9]} 11. f3 {[%clk
0:02:55.5]} 11... exd4 {[%clk 0:02:46.4]} 12. Nxd4 {[%clk 0:02:50.9]} 12... Bd7
{[%clk 0:02:39.8]} 13. Re1 {[%clk 0:02:45.2]} 13... Qf7 {[%clk 0:02:27.1]} 14.
b3 {[%clk 0:02:39.3]} 14... Nxd4 {[%clk 0:02:23.9]} 15. Qxd4 {[%clk 0:02:37.9]}
15... Bc6 {[%clk 0:02:21.6]} 16. Bb2 {[%clk 0:02:31.7]} 16... Nd7 {[%clk
0:02:09.6]} 17. Nd5 {[%clk 0:02:25.5]} 17... Bxd5 {[%clk 0:01:37]} 18. cxd5
{[%clk 0:02:02.2]} 18... Bf6 {[%clk 0:01:33.3]} 19. Qd2 {[%clk 0:01:56.2]} 19...
Bxb2 {[%clk 0:01:32.4]} 20. Qxb2 {[%clk 0:01:56.7]} 20... Qxd5 {[%clk
0:01:31.5]} 21. Re7 {[%clk 0:01:50.2]} 21... Rf7 {[%clk 0:01:05.4]} 22. Rae1
{[%clk 0:01:45.5]} 22... Ne5 {[%clk 0:00:52.5]} 23. Rxf7 {[%clk 0:01:37.4]}
23... Qxf7 {[%clk 0:00:47]} 24. Qe2 {[%clk 0:01:27.9]} 24... c6 {[%clk
0:00:24.1]} 25. f4 {[%clk 0:01:25.7]} 25... Ng6 {[%clk 0:00:24]} 26. Bh3 {[%clk
0:01:22.6]} 26... Qf6 {[%clk 0:00:17.7]} 27. Be6+ {[%clk 0:01:14.9]} 27... Kh8
{[%clk 0:00:17.8]} 28. f5 {[%clk 0:01:12]} 28... Ne5 {[%clk 0:00:17.2]} 29. Qh5
{[%clk 0:00:59.9]} 29... Rf8 {[%clk 0:00:12.8]} 30. Re4 {[%clk 0:00:58.7]} 30...
g6 {[%clk 0:00:09.5]} 31. Qh6 {[%clk 0:00:52.7]} 31... gxf5 {[%clk 0:00:08.6]}
32. Rh4 {[%clk 0:00:43.6]} 32... Qxh6 {[%clk 0:00:07]} 33. Rxh6 {[%clk
0:00:44.1]} 33... f4 {[%clk 0:00:06.7]} 34. gxf4 {[%clk 0:00:44.4]} 34... Rxf4
{[%clk 0:00:06.9]} 35. Bh3 {[%clk 0:00:42.2]} 35... Rd4 {[%clk 0:00:04.1]} 36.
Re6 {[%clk 0:00:41.7]} 36... Ng6 {[%clk 0:00:02.3]} 37. Re8+ {[%clk 0:00:39.6]}
37... Kg7 {[%clk 0:00:02.5]} 38. Rb8 {[%clk 0:00:40.4]} 38... Rb4 {[%clk
0:00:02.5]} 39. Ra8 {[%clk 0:00:37.5]} 39... a6 {[%clk 0:00:03]} 40. Rd8 {[%clk
0:00:37.8]} 40... d5 {[%clk 0:00:03.5]} 41. Rd7+ {[%clk 0:00:38.4]} 41... Kh6
{[%clk 0:00:03.2]} 42. Be6 {[%clk 0:00:36.9]} 42... a5 {[%clk 0:00:04.1]} 43.
Bg8 {[%clk 0:00:35.9]} 43... Kg5 {[%clk 0:00:05]} 44. Rxh7 {[%clk 0:00:35.6]}
44... Nf4 {[%clk 0:00:05.4]} 45. Rg7+ {[%clk 0:00:35.7]} 45... Kf6 {[%clk
0:00:05.3]} 46. Rf7+ {[%clk 0:00:30.8]} 46... Ke5 {[%clk 0:00:05.7]} 47. Re7+
{[%clk 0:00:30.2]} 47... Kd6 {[%clk 0:00:05.5]} 48. Rf7 {[%clk 0:00:28.9]} 48...
Ne2+ {[%clk 0:00:05.5]} 49. Kf2 {[%clk 0:00:28]} 49... Nd4 {[%clk 0:00:06.4]}
50. Rf6+ {[%clk 0:00:27.1]} 50... Kc5 {[%clk 0:00:06.9]} 51. Bh7 {[%clk
0:00:22.4]} 51... a4 {[%clk 0:00:07.1]} 52. bxa4 {[%clk 0:00:21.8]} 52... Rxa4
{[%clk 0:00:08]} 53. Rf7 {[%clk 0:00:22.2]} 53... Rxa2+ {[%clk 0:00:08]} 54. Kg3
{[%clk 0:00:21.8]} 54... b5 {[%clk 0:00:08.6]} 55. Rc7 {[%clk 0:00:21.2]} 55...
Ra3+ {[%clk 0:00:08.8]} 56. Kf4 {[%clk 0:00:19.7]} 56... Ne6+ {[%clk 0:00:07.9]}
57. Ke5 {[%clk 0:00:20]} 57... Nxc7 {[%clk 0:00:08.8]} 58. Bf5 {[%clk 0:00:20]}
58... Ra2 {[%clk 0:00:08.1]} 59. Bd7 {[%clk 0:00:20.9]} 59... Rxh2 {[%clk
0:00:07.9]} 60. Kf6 {[%clk 0:00:20.3]} 60... Rh6+ {[%clk 0:00:07.7]} 61. Kg5
{[%clk 0:00:18.2]} 61... Rh7 {[%clk 0:00:07.6]} 62. Bf5 {[%clk 0:00:17.2]} 62...
Rg7+ {[%clk 0:00:07.3]} 63. Kf6 {[%clk 0:00:17.2]} 63... Rg8 {[%clk 0:00:07.3]}
64. Bh7 {[%clk 0:00:16.7]} 64... Rf8+ {[%clk 0:00:07.3]} 65. Ke7 {[%clk
0:00:17.1]} 65... Rb8 {[%clk 0:00:07.6]} 66. Kd7 {[%clk 0:00:15.8]} 66... b4
{[%clk 0:00:08.5]} 67. Kxc7 {[%clk 0:00:15.9]} 67... b3 {[%clk 0:00:09.4]} 68.
Kxb8 {[%clk 0:00:15]} 68... b2 {[%clk 0:00:09.8]} 69. Kc7 {[%clk 0:00:15.5]}
69... Kc4 {[%clk 0:00:10.1]} 70. Bb1 {[%clk 0:00:15.6]} 70... d4 {[%clk
0:00:11]} 71. Kxc6 {[%clk 0:00:15.8]} 71... Kc3 {[%clk 0:00:11.2]} 72. Kb5
{[%clk 0:00:15.8]} 72... d3 {[%clk 0:00:11.7]} 73. Bxd3 {[%clk 0:00:12.8]} 73...
Kxd3 {[%clk 0:00:12.3]} 74. Kc5 {[%clk 0:00:12.7]} 74... b1=Q {[%clk 0:00:13.2]}
75. Kd6 {[%clk 0:00:12.8]} 75... Qc2 {[%clk 0:00:14.1]} 76. Ke5 {[%clk
0:00:13.7]} 76... Qc4 {[%clk 0:00:14.5]} 77. Kf5 {[%clk 0:00:13.7]} 77... Qe4+
{[%clk 0:00:14.6]} 78. Kf6 {[%clk 0:00:13.3]} 78... Kd4 {[%clk 0:00:15.5]} 79.
Kg7 {[%clk 0:00:13.3]} 79... Kd5 {[%clk 0:00:16.4]} 80. Kh6 {[%clk 0:00:14.1]}
80... Qg2 {[%clk 0:00:16.2]} 81. Kh7 {[%clk 0:00:14.1]} 81... Ke6 {[%clk
0:00:16.7]} 82. Kh8 {[%clk 0:00:15]} 82... Kf7 {[%clk 0:00:16.4]} 83. Kh7 {[%clk
0:00:15.8]} 83... Qg7# {[%clk 0:00:16.4]} 0-1

[Event "*** Titled Tuesday Blitz"]
[Site "Chess.com"]
[Date "2021.03.09"]
[Round "10"]
[White "mapleaff"]
[Black "GMJustin"]
[Result "1-0"]
[WhiteElo "2408"]
[BlackElo "2278"]
[TimeControl "180+1"]
[EndTime "12:00:54 PST"]
[Termination "mapleaff won on time"]

1. e4 {[%clk 0:03:00]} 1... e5 {[%clk 0:02:55]} 2. Nf3 {[%clk 0:03:00.1]} 2...
Nc6 {[%clk 0:02:54.4]} 3. Bb5 {[%clk 0:03:00.4]} 3... a6 {[%clk 0:02:53.6]} 4.
Ba4 {[%clk 0:03:00.5]} 4... Nf6 {[%clk 0:02:52.3]} 5. O-O {[%clk 0:03:00.5]}
5... Nxe4 {[%clk 0:02:51.8]} 6. d4 {[%clk 0:02:57.5]} 6... b5 {[%clk 0:02:51.2]}
7. Bb3 {[%clk 0:02:57.6]} 7... d5 {[%clk 0:02:50.9]} 8. dxe5 {[%clk 0:02:57.2]}
8... Be6 {[%clk 0:02:50.1]} 9. Qe2 {[%clk 0:02:56]} 9... Bc5 {[%clk 0:02:35.5]}
10. Be3 {[%clk 0:02:44.4]} 10... O-O {[%clk 0:02:26]} 11. Rd1 {[%clk 0:02:41.3]}
11... Ne7 {[%clk 0:02:09.7]} 12. Nbd2 {[%clk 0:02:04.4]} 12... Bxe3 {[%clk
0:01:54]} 13. Qxe3 {[%clk 0:01:59.2]} 13... Nf5 {[%clk 0:01:48.7]} 14. Qf4
{[%clk 0:01:51.2]} 14... g5 {[%clk 0:01:21.1]} 15. Qg4 {[%clk 0:01:38.2]} 15...
Ng7 {[%clk 0:01:08.4]} 16. Nxe4 {[%clk 0:01:31.2]} 16... Bxg4 {[%clk 0:01:07.2]}
17. Nf6+ {[%clk 0:01:31.7]} 17... Kh8 {[%clk 0:01:03.4]} 18. Nxg4 {[%clk
0:01:31.9]} 18... c6 {[%clk 0:01:00.9]} 19. Nf6 {[%clk 0:01:29.3]} 19... Ne8
{[%clk 0:00:50.7]} 20. Ng4 {[%clk 0:01:02.5]} 20... Qe7 {[%clk 0:00:46.8]} 21.
c3 {[%clk 0:00:55.1]} 21... h5 {[%clk 0:00:41.3]} 22. Ne3 {[%clk 0:00:52.9]}
22... g4 {[%clk 0:00:36.6]} 23. Nd4 {[%clk 0:00:53.3]} 23... Rc8 {[%clk
0:00:29.1]} 24. Re1 {[%clk 0:00:44.6]} 24... Ng7 {[%clk 0:00:23.8]} 25. Rad1
{[%clk 0:00:26.8]} 25... Rfe8 {[%clk 0:00:22.9]} 26. Nef5 {[%clk 0:00:25.3]}
26... Nxf5 {[%clk 0:00:17.7]} 27. Nxf5 {[%clk 0:00:26.2]} 27... Qc7 {[%clk
0:00:06.9]} 28. Nd6 {[%clk 0:00:20.5]} 28... Re6 {[%clk 0:00:03.3]} 29. Nxc8
{[%clk 0:00:18.4]} 29... Qxc8 {[%clk 0:00:03.6]} 30. Re3 {[%clk 0:00:14.9]}
30... Qe8 {[%clk 0:00:03.5]} 31. Rde1 {[%clk 0:00:15.4]} 31... Qe7 {[%clk
0:00:03.1]} 32. Bc2 {[%clk 0:00:15]} 32... Kg7 {[%clk 0:00:02.6]} 33. Bf5 {[%clk
0:00:14.6]} 33... Rh6 {[%clk 0:00:02.7]} 34. h3 {[%clk 0:00:14.9]} 34... Qg5
{[%clk 0:00:02.5]} 35. Bc2 {[%clk 0:00:09.1]} 35... Re6 {[%clk 0:00:01.1]} 36.
hxg4 {[%clk 0:00:08.7]} 36... hxg4 {[%clk 0:00:01.1]} 37. Rg3 {[%clk 0:00:08.2]}
37... Qf4 {[%clk 0:00:01.4]} 38. Bd1 {[%clk 0:00:07.1]} 38... Rxe5 {[%clk
0:00:01.6]} 39. Rf1 {[%clk 0:00:06.9]} 39... Re4 {[%clk 0:00:01.2]} 40. Rxg4+
{[%clk 0:00:06.6]} 40... Qxg4 {[%clk 0:00:01.5]} 41. Bxg4 {[%clk 0:00:07.5]}
41... Rxg4 {[%clk 0:00:02.1]} 42. f3 {[%clk 0:00:08.4]} 42... Ra4 {[%clk
0:00:01.5]} 43. a3 {[%clk 0:00:08.3]} 43... Kf6 {[%clk 0:00:01.9]} 44. Re1
{[%clk 0:00:08.7]} 44... c5 {[%clk 0:00:02]} 45. Rd1 {[%clk 0:00:08.8]} 45...
Ke6 {[%clk 0:00:01.7]} 46. Re1+ {[%clk 0:00:09]} 46... Kd6 {[%clk 0:00:01.9]}
47. Re8 {[%clk 0:00:09.1]} 47... d4 {[%clk 0:00:01.9]} 48. Rd8+ {[%clk
0:00:09.5]} 48... Kc7 {[%clk 0:00:01.8]} 49. Rd5 {[%clk 0:00:09.6]} 49... Kc6
{[%clk 0:00:02]} 50. Rd8 {[%clk 0:00:07.8]} 50... dxc3 {[%clk 0:00:01.8]} 51.
bxc3 {[%clk 0:00:08.7]} 51... Rxa3 {[%clk 0:00:02.1]} 52. Ra8 {[%clk 0:00:09.3]}
52... Kb6 {[%clk 0:00:02.2]} 53. Rf8 {[%clk 0:00:08.9]} 53... Rxc3 {[%clk
0:00:02.3]} 54. Rxf7 {[%clk 0:00:09.5]} 54... b4 {[%clk 0:00:02.7]} 55. g4
{[%clk 0:00:09.9]} 55... b3 {[%clk 0:00:02.7]} 56. Rf8 {[%clk 0:00:10.5]} 56...
Kc7 {[%clk 0:00:02]} 57. Kg2 {[%clk 0:00:08.2]} 57... b2 {[%clk 0:00:01.5]} 58.
Rf7+ {[%clk 0:00:09.1]} 58... Kc6 {[%clk 0:00:01.3]} 59. Kg3 {[%clk 0:00:10]}
59... b1=Q {[%clk 0:00:00.8]} 60. Rf6+ {[%clk 0:00:10.9]} 1-0